Cogmind - Beta 17 @@@ ROGUE MODE // 2026.07.02 @ 20:11:43 Player: Minty Result: Destroyed by Y-45 Defender with Heavy Assault Rifle Performance ------------- Evolutions (0) 0 Regions Visited (2) 400 Robots Destroyed (19) 95 Value Destroyed (558) 558 Prototype IDs (1) 20 Alien Tech Used (0) 0 Bonus (6250) 6250 TOTAL SCORE: 7323 Bonus ------- Prayed to X0-1V1 5000 Major X0-1V1 Interference 1250 Cogmind --------- Core Integrity 0/150 Matter 112/150 Energy 869/900 System Corruption 3% Temperature Cool (9) Movement Rolling (95) Ox1 Location -10/Subcaves Parts ------- > --- POWER (1) -------- (None) > --- PROPULSION (3) --- Wheel (fused) > --- UTILITY (2) ------ Small Storage Unit Seismic Detector > --- WEAPON (2) ------- Barrage Gun Flamer (fused) > --- INVENTORY (8) ---- Structural Scanner Improved Terrain Scanner Makeshift Hacking Suite Light Cannon Battle Cannon Battle Cannon Grenade Launcher Peak State ------------ > --- POWER ------------ Light Ion Engine > --- PROPULSION ------- Wheel Wheel > --- UTILITY ---------- Small Storage Unit X0-1V1's Piety Tracker > --- WEAPON ----------- Assault Rifle Light Cannon > --- INVENTORY -------- Ion Engine Wheel Structural Scanner Improved Terrain Scanner Seismic Detector Medium Laser Grenade Launcher Mining Laser [Rating: 20] Favorites ----------- Power Light Ion Engine Engine Light Ion Engine Power Core Light Nuclear Core Propulsion Wheel Treads Light Treads Leg Aluminum Leg Wheel Wheel Utility Small Storage Unit Device Structural Scanner Storage Small Storage Unit Weapon Assault Rifle Energy Gun Medium Laser Ballistic Gun Assault Rifle Ballistic Cannon Light Cannon Special Weapon Flamer Build | -11 -10 -10 ------- Run | Yrd Mat Sub Slots Evolved . | . . . Power . | . . . Propulsion . | . . . Utility . | . . . Weapon . | . . . Parts Attached 24 | . 13 11 Power 2 | . 2 . Engine 1 | . 1 . Core 1 | . 1 . Reactor . | . . . Propulsion 7 | . 4 3 Treads 2 | . 2 . Leg . | . . . Wheel 5 | . 2 3 Hover . | . . . Flight . | . . . Utility 4 | . 2 2 Device 4 | . 2 2 Storage . | . . . Processor . | . . . Hackware . | . . . Protection . | . . . Artifact . | . . . Weapon 11 | . 5 6 Energy Gun 1 | . 1 . Energy Cannon . | . . . Ballistic Gun 5 | . 3 2 Ballistic Cannon 3 | . 1 2 Launcher . | . . . Special Weapon 2 | . . 2 Impact Weapon . | . . . Slashing Weapon . | . . . Piercing Weapon . | . . . Special Melee Weapon . | . . . Unidentified Prototypes 1 | . . 1 Parts Lost 7 | . 2 5 Power 2 | . 1 1 Propulsion 4 | . 1 3 Utility . | . . . Weapon 1 | . . 1 Highest Loss Streak 2 | . 1 2 To Critical Strikes . | . . . Average Backups 7 | 6 6 7 Power . | 1 1 . Propulsion 1 | 4 3 . Utility 1 | . . 2 Weapon 3 | 1 1 4 Tool/Special . | . . . Unused Backups 11 | 6 2 3 Power 2 | 1 . 1 Propulsion 4 | 2 2 . Utility 2 | 1 . 1 Weapon 3 | 2 . 1 Tool/Special . | . . . Average Slot Usage (%) 92 | . 91 92 Engine 10 | . 10 10 Core 1 | . 3 . Treads 6 | . 12 . Leg 1 | . 2 . Wheel 21 | . 12 30 Device 9 | . 6 12 Storage 13 | . 14 12 Energy Gun 1 | . 3 . Ballistic Gun 16 | . 19 12 Ballistic Cannon 8 | . 5 10 Peak Build Rating 20 | 6 9 20 Average Rating 9 | 6 7 11 On Entrance 7 | 6 6 9 Avg Prop Armor Cover (%) 4 | . . 4 Naked Turns . | . . . Heaviest Build 15 | 13 14 15 Greatest Support 40 | 20 40 30 Greatest Overweight (x) 1 | . 1 1 Average Overweight (x) . | . . . Largest Inventory Capacity 8 | 8 8 8 Average Capacity 8 | 8 8 8 Most Carried 8 | 6 8 8 Average Carried 7 | 6 6 7 Final Capacity 8 | 8 8 8 Final Carried 8 | 6 8 7 Class Distribution -------------------- 100% | Mutant Dominant Class ---------------- Mutant | -10/Materials Mutant | -10/Subcaves Resources | -11 -10 -10 ----------- Run | Yrd Mat Sub Matter Collected 882 | 200 355 327 Remotely . | . . . Salvage Created 719 | . 570 149 Parts 49 | . 41 8 Haulers Intercepted 2 | . 2 . Recyclers Shooed . | . . . Parts Field Recycled . | . . . Retrieved Matter . | . . . Parts Self-Destructed 6 | . . 6 Prevented . | . . . Parts Restored . | . . . Kills | -11 -10 -10 ------- Run | Yrd Mat Sub Combat Hostiles Destroyed 16 | . 12 4 Guns 13 | . 10 3 Cannons 2 | . 2 . Classes Destroyed 6 | . 4 2 Tunneler 1 | . 1 . Hauler 2 | . 2 . Swarmer 2 | . 2 . Grunt 12 | . 10 2 Cobbler 1 | . . 1 Subdweller 2 | . . 2 Best Kill Streak 4 | . 4 2 Combat Bots Only 4 | . 4 2 Max Kills in Single Turn 1 | . 1 1 Gunslinging . | . . . Exploded . | . . . Melee . | . . . Uniques/NPCs Destroyed . | . . . Combat | -11 -10 -10 -------- Run | Yrd Mat Sub Hostile Shots Fired 138 | . 90 48 Missed 35 | . 21 14 Hits 103 | . 69 34 Projectile 103 | . 69 34 Damage Taken 1337 | . 782 555 Core 259 | . 130 129 Absorbed by Shields . | . . . Ignored by Resistances 38 | . . 38 Core Remaining (%) 100 | 100 . . Volleys Fired 87 | . 43 44 Largest 2 | . 2 2 Hottest 128 | . 70 128 Shots Fired 156 | . 85 71 Gun 104 | . 75 29 Cannon 37 | . 10 27 Launcher . | . . . Special 15 | . . 15 Kinetic 132 | . 76 56 Thermal 24 | . 9 15 Explosive . | . . . Electromagnetic . | . . . Robot Hit Streak 23 | . 23 13 Robot Miss Streak 3 | . 2 3 Penetration Max . | . . . Secondary Targets 3 | . 2 1 Max Gunslinging Chain 1 | . 1 1 Shots Hit Robots 100 | . 63 37 Core Hits 33 | . 27 6 Critical Kills . | . . . Critical Parts Destroyed 1 | . . 1 Critical Strikes 4 | . . 4 Burn 2 | . . 2 Destroy 1 | . . 1 Blast 1 | . . 1 Melee Attacks . | . . . Impact . | . . . Slashing . | . . . Piercing . | . . . Sneak Attacks . | . . . Combat Hostiles . | . . . Follow-up Attacks . | . . . Damage Inflicted 1438 | . 837 601 Guns 1080 | . 699 381 Cannons 235 | . 135 100 Explosions . | . . . Melee . | . . . Ramming 3 | . 3 . Kinetic 1228 | . 747 481 Thermal 207 | . 87 120 Explosive . | . . . Electromagnetic . | . . . Impact . | . . . Slashing . | . . . Piercing . | . . . Highest Corruption 3 | . 3 3 Average Corruption 2 | . 2 3 Corruption Purged . | . . . Corruption Blocked . | . . . Effects 28 | . 11 17 Message Errors 3 | . 1 2 Matter Fused 8 | . 3 5 Heat Flow Errors 5 | . 2 3 Energy Discharges 3 | . . 3 Data Loss (minor) 4 | . 3 1 Data Loss (major) 1 | . . 1 Misfires 1 | . . 1 Alerts 1 | . 1 . Weapon Failures 2 | . 1 1 Overload Shots . | . . . Overflow Damage 3 | . . 3 Projectiles 3 | . . 3 Explosions . | . . . Melee . | . . . Knockbacks 2 | . 1 1 Impact . | . . . Kinetic 2 | . 1 1 Secondary . | . . . Self-Inflicted Damage . | . . . Shots . | . . . Rammed 2 | . 2 . Targets Rammed 2 | . 2 . Kicked . | . . . Crushed . | . . . Highest Temperature 243 | . 187 243 Average Temperature 41 | . 37 53 Received Heat Transfer 591 | . 375 216 Siege Activations . | . . . Martial Activations . | . . . Shielding Activations . | . . . Robots Disrupted . | . . . Combat Hostiles . | . . . Robots Corrupted . | . . . Combat Hostiles . | . . . Parts Fried . | . . . Impact Corruptions . | . . . Robots Melted 1 | . . 1 Combat Hostiles 1 | . . 1 Parts Melted 1 | . 1 . Heat Transferred 1459 | . 259 1200 Parts Sabotaged . | . . . Parts Stolen . | . . . Parts Stripped . | . . . Power Chain Reactions . | . . . Alert | -11 -10 -10 ------- Run | Yrd Mat Sub Maximum Alert Level . | . . . Low Security (%) 100 | 100 100 . Level 1 . | . . . Level 2 . | . . . Level 3 . | . . . Level 4 . | . . . Level 5 . | . . . High Security . | . . . Max Security . | . . . Peak Influence 80 | . 80 . Initial . | . . . Average 24 | . 24 . Influence Increases 369 | . 319 50 Destroy 0b10 Robot/C 280 | . 240 40 Destroy 0b10 Robot/NC 15 | . 15 . Destroy Leader 64 | . 54 10 Successful Hack 10 | . 10 . Influence Decreases 369 | . 319 50 Time Decay 272 | . 242 30 Lost Part 40 | . 20 20 Purge Threat 57 | . 57 . Squads Dispatched 2 | . 2 . Investigation 2 | . 2 . Extermination . | . . . Reinforcement . | . . . Assault . | . . . Garrison . | . . . Intercept . | . . . Searches Triggered . | . . . Construction Impeded . | . . . Haulers Reinforced . | . . . Active Scanning Responses . | . . . Cargo Convoy Interrupts . | . . . Stealth | -11 -10 -10 --------- Run | Yrd Mat Sub Distress Signals 2 | . 2 . Communications Jammed . | . . . Distress Signals . | . . . Times Spotted 21 | . 15 6 Peak Tracking Total 6 | . 6 2 Tactical Retreats . | . . . Traps | -11 -10 -10 ------- Run | Yrd Mat Sub Traps Triggered 3 | . 3 . Indirectly . | . . . Trap Hack Attempts . | . . . Triggered . | . . . Disarmed . | . . . Reprogrammed . | . . . Reused . | . . . Traps Extracted . | . . . Installed . | . . . Triggered . | . . . Machines | -11 -10 -10 ---------- Run | Yrd Mat Sub Machines Disabled . | . . . Max in Single Turn . | . . . Machines Repaired . | . . . Machines Dismantled . | . . . Machines Sabotaged . | . . . Overloaded Fab Kills . | . . . Hacking | -11 -10 -10 --------- Run | Yrd Mat Sub Machines Accessed 5 | . 4 1 Terminals 4 | . 4 . Fabricators . | . . . Repair Stations . | . . . Recycling Units . | . . . Scanalyzers . | . . . Garrison Access . | . . . Total Hacks 19 | . 14 5 Successful 11 | . 6 5 Failed 8 | . 8 . Catastrophic 2 | . 2 . Database Lockouts . | . . . Manual 2 | . 2 . Terminals 14 | . 14 . Fabricators . | . . . Repair Stations . | . . . Recycling Units . | . . . Scanalyzers . | . . . Garrison Access . | . . . Terminal Hacks 11 | . 6 5 Record 5 | . . 5 Level Access Points 1 | . 1 . Alert Level 1 | . 1 . Unreport Threat 1 | . 1 . Locate Traps 1 | . 1 . Investigation Status 1 | . 1 . Zone Layout 1 | . 1 . Fabricator Hacks . | . . . Repair Station Hacks . | . . . Recycling Unit Hacks . | . . . Scanalyzer . | . . . Garrison Access Hacks . | . . . Unauthorized Hacks . | . . . Terminals . | . . . Fabricators . | . . . Repair Stations . | . . . Recycling Units . | . . . Scanalyzers . | . . . Garrison Access . | . . . Data Cores Recovered . | . . . Used . | . . . Hacking Detections 4 | . 4 . Full Trace Events 2 | . 2 . Feedback Events . | . . . Feedback Blocked . | . . . Robot Schematics Acquired . | . . . Robots Built . | . . . Authchips . | . . . Time . | . . . Total Robot Build Rating . | . . . Part Schematics Acquired . | . . . Parts Built . | . . . Authchips . | . . . Time . | . . . Total Part Build Rating . | . . . Part Studies Acquired . | . . . Parts Repaired . | . . . Time . | . . . Parts Recycled . | . . . Recycled Matter . | . . . Retrieved Matter . | . . . Retrieved Components . | . . . Parts Scanalyzed . | . . . Part Schematics Acquired . | . . . Parts Damaged . | . . . Bothacking | -11 -10 -10 ------------ Run | Yrd Mat Sub Used RIF Installer . | . . . Robots Hacked . | . . . Non-combat . | . . . Combat . | . . . Robot Hacks Applied . | . . . Relay Couplers Released . | . . . Fabnet Peak Effective % . | . . . Robots Rewired . | . . . Allies Hacked . | . . . Hacks Repelled . | . . . Allies | -11 -10 -10 -------- Run | Yrd Mat Sub Total Allies . | . . . Largest Group . | . . . Highest-Rated Group . | . . . Highest-Rated Ally . | . . . Total Orders . | . . . Ally Attacks . | . . . Total Damage . | . . . Kills . | . . . Allies Corrupted . | . . . Allies Melted . | . . . X0-1V1 Amusement Gains 16 | . 16 . Good Acts 7 | . . 7 Bad Acts 11 | . . 11 Intel | -11 -10 -10 ------- Run | Yrd Mat Sub Active Infowar (turns) 1048 | . 359 689 Terrain 39 | . 39 . Structural 916 | . 320 596 Seismic 93 | . . 93 Robot Analysis Total . | . . . Derelict Logs Recovered 1 | . . 1 Drone Launches . | . . . Drone Recoveries . | . . . Exploration | -11 -10 -10 ------------- Run | Yrd Mat Sub Turns Passed 1512 | 3 773 736 Spaces Moved 1151 | 3 455 693 Core . | . . . Treads 172 | . 172 . Legs 18 | 3 15 . Wheels 961 | . 268 693 Hover . | . . . Flight . | . . . Fastest Speed 80 | 120 80 80 Average Speed 93 | 120 111 80 Slowest Speed 160 | 120 160 95 Overloaded Moves . | . . . Propulsion Burnouts . | . . . Robots Hopped . | . . . Potential Cave-ins . | . . . Cave-ins Triggered . | . . . Exploration Rate (%) 41 | 2 85 37 Regions Visited 2 Branch Regions 1 Pre-discovered Areas . | . . . Known Exits Taken . | . . . Unknown Exits Taken 2 | 1 1 . Scrap Searched 3 | . . 3 Spaces Dug . | . . . Terrain Destroyed . | . . . Melee . | . . . Projectile . | . . . AOE . | . . . Terrain Rammed . | . . . Walls Destroyed . | . . . Machines Disabled . | . . . Actions | -11 -10 -10 --------- Run | Yrd Mat Sub Total 1419 | 2 632 785 Wait 122 | . 105 17 Move 1149 | 2 454 693 Hop . | . . . Pick Up 9 | . 5 4 Fast Attach 6 | . 3 3 Attach 9 | . 4 5 Detach 7 | . 3 4 Swap 18 | . 8 10 Drop 10 | . 5 5 Fire 87 | . 43 44 Melee . | . . . Ram . | . . . Kick . | . . . Crush 2 | . 2 . Escape Stasis . | . . . Rewire . | . . . Trap . | . . . Miscellaneous . | . . . Route ------- -11/Scrapyard -10/Materials (discovered 5 exits: *Mat x3 / [*Min] / *Sub) -10/Subcaves History --------- Turn | Location | Event 1 | -11/Scrapyard | Discovered new exit (range 3) 4 | -11/Scrapyard | Entered Materials 115 | -10/Materials | Identified exit to Materials 231 | -10/Materials | Discovered new exit (range 10) 267 | -10/Materials | Core integrity fell below 50% 307 | -10/Materials | Build established: Mutant 755 | -10/Materials | Discovered new exit (range 5) 775 | -10/Materials | Prayed at D.C.S.S. Altar Unit 777 | -10/Materials | Entered Subcaves 871 | -10/Subcaves | Shifting Twisted Machinery released Battle Cannon 884 | -10/Subcaves | Shifting Twisted Machinery released Barrage Gun 949 | -10/Subcaves | A swath of the cavern ceiling suddenly collapsed 959 | -10/Subcaves | Propulsion slot count permanently improved by X0-1V1 (+1) 1133 | -10/Subcaves | Core integrity fell below 20% 1170 | -10/Subcaves | Shifting Twisted Machinery released Barrage Gun 1208 | -10/Subcaves | TH resistance permanently improved by X0-1V1 (+10%; -100 max core) 1332 | -10/Subcaves | Learned Materials garrison access intel 1427 | -10/Subcaves | Visited Clippyterm 1429 | -10/Subcaves | Learned Factory trap positions 1429 | -10/Subcaves | Learned Research security intel 1491 | -10/Subcaves | X0-1V1 activates XOMVISION 1495 | -10/Subcaves | X0-1V1 sent you into danger 1513 | -10/Subcaves | Destroyed by Y-45 Defender with Heavy Assault Rifle Last Messages --------------- 01497_ X0-1V1 ensures you are ready for glorious battle (+Shotgun). 01498_ X0-1V1: "And it's a trip and a fumble!" 01498_ Wheel tossed aside. 01499_ Acquired Wheel. 01500_ X0-1V1: "So many nails, never enough hammers..." (-18% ranged accuracy) 01501_ X0-1V1: "I know that drunk sailor look when I see it." 01501_ X0-1V1: "Heat sink stocks are down. Don't ask me how I know." (+124 heat dissipation) IFF burst signal emitted. 01507_ X0-1V1: "Don't be shy now." 01508_ System corrupted: Matter fused (-5). 01508_ Discarded Shotgun. 01510_ X0-1V1: "Use it or lose it, I always say." 01510_ Wheel fused. 01510_ Flamer fused. 01513_ X0-1V1: "The ol' switcheroo!" Y-45 Defender form resolidifies at new position. Form resolidifies at new position. 01513_ X0-1V1: "Big yawn energy here." Map ----- +----------------------------------------------------+ | ?????????????????????????????????????????????????? | | ?????????????????????????????????????????????????? | | ?????????????????????????????????????????????????? | | ?????????????????????????????????????????????????? | | ?????????????????????????????????????????????????? | | ?????????????????????????????????????????????????? | | ?????????????????????????????????????????????????? | | ?????????????????????????????????????????????????? | | ?????????????????????????????????????????????????? | | ?????????????????????????????????????????????????? | | ?????????????????????????????????????????????????? | | ?????????????????????????????????????????????????? | | ?????????????????????????????????????????????????? | | ?????????????????????????????????????????????????? | | ?????????????????????????????????????????????????? | | ?????????????????????????????????????????????????? | | ?????????????????????????????????????????????????? | | ?????????????????????????????????????????????????? | | ???????????????????????????????????####??????????? | | ???????????????????????????####????#######???????? | | ?????????????????????????######???## # ####????? | | ?????????????????????????#### ##### #????? | | ?????????????????????##### #### #????? | | ?????????????????????#"""## ## # ##???? | | ?????????????????????#"" ## ## #???? | | ?????????????????????#"X @ ### #???? | | ?????????????????????#""Y## ## #???? | | ?????????????????????#"""### ## ###?? | | ?????????????????????######## ## # # ##? | | ?????????????????????????#### ## ##### ## | | ????????????????????????#### ## #?## | | ???????????????????????#### ### #?# | | ???????????????????????### ### ### | | ???????????????????????## ### ### | | ???????????????????????### ### ## | | ???????????????????????## ### ### ## | | ???????????????????????## ## # #? | | ???????????????????????## ## #### ## ##? | | ???????????????????????## ## ###?###########?? | | ???????????????????????### ###?????????????? | | ?????????????????????##### ##??????????????? | | ?????????????????????### # ##??????????????? | | ?????????????????????## # ###??????????????? | | ?????????????????????## ## # ####??????????????? | | ?????????????????????## #### ##???????????????? | | ?????????????????????## ##### ###???????????????? | | ?????######??????##??## #### ###???????????????? | | ????##### ##??## #??## ##### ##????????????????? | | ###?### ## #??## ### ##????????????????? | | # #?## ###### ## ##????????????????? | +----------------------------------------------------+ Best States ------------- Heat Dissipation 149 Energy Generation 14 Energy Capacity 925 Matter Stores 300 Matter Capacity 300 Sight Range 18 Terrain Scan Range 16 Terrain Scan Density 10 Resistance: TH 10 Evasion (%) 55 Recoil Reduction 2 Item Schematics ----------------- None Robot Schematics ------------------ None Fabricated ------------ Nothing Repaired ---------- Nothing Studied --------- None Alien Tech Used ----------------- None Achievements -------------- None Challenges ------------ None Game ------ Seed InterdictionDispersalClaws Manual? 0 Play Time 00:14:25 Cumulative 1332.3 hours Start 2026.07.02 @ 20:01:34 End 2026.07.02 @ 20:11:43 Sessions 1 Manual Loads 0 Difficulty Rogue Special Mode None Game No. 1631 Rogue 1347 Adventurer 124 Explorer 160 Win Type - Total 67 Types 52/0/9/4/1/0/0/1/0/0 Lore% 93 Gallery% 84 Achievement% 72 Wizard Run 0 Options --------- Layout 0 ASCII 0 Keyboard 1 Movement Numpad Keybinds 0 Fullscreen 2 Font 18/X11 Map View 76x50 Zoom Use 0% Tactical HUD 1 Map Filters NONE Filters NONE Steam 1 RUN: 76270d19-4ab1-4962-94a9-363a7b636c9d